bitfinex-derivatives/quotes_ETHF0:USTF0_20210102
["timestamp","ask_amount","ask_price","bid_price","bid_amount"]
[1609595212030,15.0,763.8,763.34,34.31074188]
[1609595212430,6.01438,763.35,763.34,34.31074188]
[1609595212632,10.34938,763.35,763.34,34.31074188]
[1609595213031,12.95178,763.35,763.34,34.31074188]
[1609595213431,10.34938,763.35,763.34,34.31074188]
[1609595213938,10.34938,763.35,760.58,24.072]
[1609595214337,6.01438,763.17,762.62,6.01438]
[1609595214738,4.335,763.35,762.62,6.01438]
[1609595214937,86.9543,764.67,763.08,4.308]
[1609595215941,15.0,765.06,763.08,4.308]
[1609595216339,99.8847,765.26,763.08,4.308]
[1609595216540,6.01438,763.72,763.47,6.01438]
[1609595216940,6.01438,763.72,763.08,4.308]
[1609595217741,2.6014,763.71,763.08,4.308]
[1609595217941,6.01438,763.72,763.08,4.308]
[1609595218141,4.288,764.23,763.08,4.308]
[1609595218442,6.01438,764.01,763.77,6.01438]
[1609595219043,3.865,764.57,763.77,6.01438]
[1609595219243,3.865,764.57,763.77,9.31238]
[1609595220045,2.5878,764.56,763.77,9.31238]
[1609595220245,3.865,764.57,763.77,9.31238]
[1609595220445,3.865,764.57,763.87,6.01438]
[1609595220446,6.01438,764.13,763.87,6.01438]
[1609595220746,6.01438,764.13,763.77,3.298]
[1609595222546,6.01438,763.78,763.77,3.298]
[1609595223349,8.63338,763.78,763.77,3.298]
[1609595223549,8.63338,763.78,763.58,4.662]
[1609595223950,8.63338,763.78,763.17,7.7934]
[1609595224351,6.01438,763.78,763.17,7.7934]
[1609595224551,4.516,763.78,763.17,7.7934]
[1609595226157,3.598,763.94,763.17,7.7934]
[1609595226558,3.598,763.94,763.36,6.01438]
[1609595226958,3.598,763.94,763.36,6.00088]
[1609595227158,4.6,764.17,763.36,6.00088]
[1609595227659,15.0,764.96,763.36,6.00088]
[1609595228364,15.0,765.16,763.36,6.00088]
[1609595228559,6.01438,763.84,763.78,0.4]
[1609595228761,3.239,764.27,763.78,0.4]
[1609595230463,6.01438,763.79,763.78,0.4]
[1609595230662,10.02238,763.79,763.78,0.4]
[1609595232467,6.01438,763.79,763.78,0.4]
[1609595234868,6.01438,763.79,763.17,7.7934]
[1609595235970,15.0,763.78,763.17,7.7934]
[1609595236471,6.01438,763.18,763.17,7.7934]
[1609595237475,4.884,763.25,763.17,7.7934]
[1609595238072,3.768,763.44,763.17,7.7934]
[1609595238473,6.01438,763.22,763.17,7.7934]
[1609595242282,10.85938,763.22,762.77,34.04652707]
[1609595242881,10.85938,763.22,762.57,6.01438]
[1609595242882,10.85938,763.22,762.72,34.06611147]
[1609595243682,10.85938,763.22,762.51,34.08871811]
[1609595245185,10.85938,763.22,762.21,6.01438]
[1609595245186,10.85938,763.22,762.34,34.10577077]
[1609595246086,10.85938,763.22,762.38,34.10074812]
[1609595246687,15.0,763.21,762.38,34.10074812]
[1609595247189,10.85938,763.22,762.38,34.10074812]
[1609595247390,10.85938,763.22,762.25,34.01548181]
[1609595247989,10.85938,763.22,762.26,4.029]
[1609595248591,10.85938,763.22,762.85,6.01438]
[1609595249692,10.85938,763.22,763.04,33.13432122]
[1609595251191,10.85938,763.22,763.03,33.09164292]
[1609595252195,10.85938,763.22,762.96,6.01438]
[1609595252495,10.85938,763.22,762.91,33.11733607]
[1609595253099,10.85938,763.22,762.94,33.08072423]
[1609595254798,3.768,763.44,762.7,6.01438]
[1609595254799,3.768,763.44,762.96,33.07300181]
[1609595254998,4.6,763.8,762.96,33.07300181]
[1609595255398,19.414,764.02,762.96,33.07300181]
[1609595256000,4.414,764.02,762.96,33.07300181]
[1609595256403,4.414,764.02,763.16,5.47673926]
[1609595256601,6.01438,763.62,763.44,6.01438]
[1609595257201,4.739,763.94,763.44,6.01438]
[1609595258602,6.01438,763.52,763.44,6.01438]
[1609595259404,4.739,763.94,763.44,6.01438]
[1609595260703,6.01438,763.67,763.61,6.01438]
[1609595261303,4.739,763.94,763.61,6.01438]
[1609595261503,26.4445,764.45,763.61,6.01438]
[1609595261905,11.4445,764.45,763.61,6.01438]
[1609595262806,6.01438,763.76,763.72,6.01438]
[1609595264608,6.01438,763.76,763.53,32.920204]
[1609595266409,6.01438,763.76,763.43,32.9441464]
[1609595266710,6.01438,763.49,763.43,32.9441464]
[1609595267611,6.01438,763.49,763.42,32.9513898]
[1609595268811,6.01438,763.49,763.32,33.01687649]
[1609595270011,6.01438,763.49,763.16,5.47673926]
[1609595270713,6.01438,763.17,763.16,5.47673926]
[1609595272613,4.668,763.61,763.16,5.47673926]
[1609595272813,6.01438,763.32,763.26,6.01438]
[1609595273214,6.01438,763.32,763.16,5.47673926]
[1609595274415,4.668,763.61,763.16,5.47673926]
[1609595274816,6.01438,763.55,763.16,5.47673926]
[1609595276223,10.59838,763.55,763.16,5.47673926]
[1609595276821,10.59838,763.55,763.31,6.01438]
[1609595278023,10.59838,763.55,763.47,31.54975287]
[1609595278827,10.59838,763.55,763.47,37.56413287]
[1609595279123,10.59838,763.55,763.47,31.54975287]
[1609595279724,10.59838,763.55,763.34,33.23243538]
[1609595280725,6.01438,763.35,763.34,33.23243538]
[1609595281525,6.01438,763.35,763.16,1.11073926]
[1609595281926,0.6,763.39,763.16,1.11073926]
[1609595282727,10.09238,763.85,763.38,6.01438]
[1609595283327,4.078,763.85,763.38,6.01438]
[1609595283529,3.025,764.02,763.38,6.01438]
[1609595283728,15.0,764.85,763.38,6.01438]
[1609595284427,15.0,764.85,763.38,9.97038]
[1609595284728,6.01438,764.04,763.89,6.01438]
[1609595284928,9.89538,764.04,763.89,6.01438]
[1609595286228,9.89538,764.04,763.38,3.956]
[1609595286831,9.89538,764.04,763.63,6.01438]
[1609595287233,15.0,764.84,763.63,6.01438]
[1609595288233,15.0,764.83,763.63,6.01438]
[1609595288831,6.01438,764.34,764.21,6.01438]
[1609595289031,6.01438,764.34,763.38,3.956]
[1609595289236,21.01438,764.34,763.38,3.956]
[1609595289432,21.01438,764.34,763.26,34.10340091]
[1609595289831,21.01438,764.34,763.17,12.064]
[1609595289832,24.27138,764.34,763.55,34.05831046]
[1609595290032,24.27138,764.34,763.55,38.60431046]
[1609595290232,9.27138,764.34,763.55,38.60431046]
[1609595290839,6.01438,764.05,763.78,6.01438]
[1609595291134,6.01438,764.05,763.55,38.60431046]
[1609595291660,6.01438,764.05,763.55,4.546]
[1609595292439,19.304,764.62,763.55,4.546]
[1609595292841,6.01438,764.23,764.04,6.01438]
[1609595293642,4.304,764.62,764.04,6.01438]
[1609595293840,15.0,765.4,764.04,6.01438]
[1609595294938,15.0,765.4,764.23,6.01438]
[1609595294939,6.01438,764.34,764.23,6.01438]
[1609595298039,4.613,764.95,764.23,6.01438]
[1609595298842,6.01438,764.52,764.23,6.01438]
[1609595299042,6.01438,764.52,763.57,34.19257672]
[1609595300941,6.01438,764.08,763.57,34.19257672]
[1609595301141,15.65538,764.78,763.57,34.19257672]
[1609595301443,0.65538,764.78,763.57,34.19257672]
[1609595302848,6.01438,764.4,763.95,6.01438]
[1609595304855,6.01438,764.4,764.33,6.01438]
[1609595307357,4.613,764.95,764.33,6.01438]
[1609595307557,26.3725,765.4,764.33,6.01438]
[1609595308357,11.3725,765.4,764.33,6.01438]
[1609595308558,15.0,765.9,764.33,6.01438]
[1609595308859,6.01438,764.74,764.72,6.01438]
[1609595309460,3.703,765.12,764.72,6.01438]
[1609595310459,15.0,765.9,764.72,6.01438]
[1609595310860,6.01438,765.19,765.09,6.01438]
[1609595314361,6.01438,765.19,765.15,30.24670314]
[1609595314961,6.01438,765.19,765.18,6.01438]
[1609595315161,4.274,765.36,765.18,6.01438]
[1609595315764,3.666,765.89,765.18,6.01438]
[1609595316163,84.12678733,766.78,765.29,30.21484342]
[1609595316362,7.22628733,766.78,765.29,30.21484342]
[1609595316864,6.01438,765.5,765.48,6.01438]
[1609595317264,6.01438,765.5,765.48,33.03817734]
[1609595318165,6.01438,765.5,765.48,6.01438]
[1609595319066,6.01438,765.5,765.46,30.17185733]
[1609595319265,4.931,765.69,765.46,30.17185733]
[1609595320067,4.931,765.69,765.27,31.75575404]
[1609595320868,6.01438,765.28,765.27,31.75575404]
[1609595321068,3.597,765.36,765.27,31.75575404]
[1609595321568,3.597,765.36,765.33,30.15386525]
[1609595322569,3.597,765.36,765.31,30.13481275]
[1609595323271,3.597,765.36,765.19,31.66927936]
[1609595323672,6.01438,765.43,765.19,31.66927936]
[1609595323872,6.01438,765.43,765.3,31.72120935]
[1609595325072,6.01438,765.43,765.23,31.74128369]
[1609595325272,9.86338,765.43,765.23,31.74128369]
[1609595326873,6.01438,765.33,765.21,31.72398212]
[1609595327874,3.131,765.51,765.21,31.72398212]
[1609595328876,6.01438,765.48,765.21,31.72398212]
[1609595330079,6.01438,765.48,765.25,31.70239368]
[1609595330277,3.131,765.51,765.25,31.70239368]
[1609595330877,3.131,765.51,765.48,6.01438]
[1609595331477,3.131,765.51,765.33,30.10139575]
[1609595332781,4.931,765.69,765.33,30.10139575]
[1609595332982,83.5879,766.17,765.6,6.01438]
[1609595333383,11.4072,766.86,765.6,6.01438]
[1609595333784,11.4072,766.86,765.6,32.92568002]
[1609595334485,11.4072,766.86,765.8,23.7384885]
[1609595334686,80.3798,766.93,765.8,23.7384885]
[1609595334884,7.22241224,766.99,765.8,23.7384885]
[1609595334885,6.01438,765.81,765.8,23.7384885]
[1609595335286,10.34738,765.81,765.79,23.73380311]
[1609595336086,10.34738,765.81,765.51,0.3976]
[1609595336087,10.34738,765.81,765.57,23.74094209]
[1609595336886,10.34738,765.81,765.52,23.74888888]
[1609595336887,6.01438,765.58,765.52,23.74888888]
[1609595337086,10.46238,765.58,765.52,23.74888888]
[1609595337787,0.46238,765.58,765.52,23.74888888]
[1609595338188,0.46238,765.58,765.51,0.3976]
[1609595338189,0.46238,765.58,765.57,23.73814315]
[1609595340388,0.80976,765.83,765.57,23.73814315]
[1609595340888,6.01438,765.68,765.57,23.73814315]
[1609595341289,10.38538,765.68,765.51,0.3976]
[1609595342990,6.01438,765.57,765.51,0.3976]
[1609595344095,0.38538,765.68,765.51,0.3976]
[1609595344298,89.8565,766.57,765.51,0.3976]
[1609595344894,89.8565,766.57,765.65,26.78346842]
[1609595345101,6.01438,765.66,765.65,26.78346842]
[1609595345498,10.77038,765.66,765.65,26.78346842]
[1609595346596,10.77038,765.66,765.51,30.32264952]
[1609595347994,10.77038,765.66,765.62,26.77307633]
[1609595349096,10.77038,765.66,765.58,26.7762172]
[1609595349795,10.77038,765.66,765.51,0.3976]
[1609595349796,10.77038,765.66,765.61,23.6498347]
[1609595350500,10.77038,765.66,765.61,7.9568347]
[1609595350897,10.77038,765.66,765.51,0.3976]
[1609595351297,10.77038,765.66,765.46,5.79474599]
[1609595351498,10.77038,765.66,765.15,29.99376039]
[1609595353000,6.01438,765.16,765.15,29.99376039]
[1609595353399,10.10038,765.16,765.15,29.99376039]
[1609595354499,10.10038,765.16,765.06,6.01438]
[1609595356000,10.10038,765.16,765.0,29.96514087]
[1609595357003,6.01438,765.04,765.0,29.96514087]
[1609595360304,6.01438,765.04,764.95,6.01438]
[1609595360305,6.01438,765.04,765.01,29.90668137]
[1609595361706,6.01438,765.04,764.96,29.81212877]
[1609595361907,2.6134,765.03,764.96,29.81212877]
[1609595362507,6.01438,765.04,764.96,29.81212877]
[1609595362708,4.086,765.16,764.98,29.71676249]
[1609595362909,106.5909,766.01,764.98,29.71676249]
[1609595363508,2.6479,765.76,764.98,29.71676249]
[1609595363717,2.6479,765.76,764.95,6.01438]
[1609595363718,2.6479,765.76,765.0,29.70587987]
[1609595363927,84.6134,766.51,765.0,29.70587987]
[1609595364115,2.6128,766.2,765.0,29.70587987]
[1609595364321,6.8628,766.2,765.0,29.70587987]
[1609595364526,6.8628,766.2,764.95,6.01438]
[1609595364527,6.8628,766.2,765.22,29.69457722]
[1609595364723,4.25,766.2,765.23,4.029]
[1609595364915,2.6194,766.19,765.23,4.029]
[1609595365120,10.85238,765.6,765.25,6.01438]
[1609595366317,2.6068,765.59,765.25,6.01438]
[1609595367019,6.01438,765.46,765.25,6.01438]
[1609595368319,2.5939,765.45,765.25,6.01438]
[1609595368622,4.838,765.6,765.25,6.01438]
[1609595369019,6.01438,765.56,765.37,6.01438]
[1609595369722,2.6509,765.55,765.37,6.01438]
[1609595370222,2.6509,765.55,765.45,26.69674937]
[1609595371123,2.6509,765.55,765.48,26.69510401]
[1609595371722,6.01438,765.56,765.48,26.69510401]
[1609595372625,2.6289,765.55,765.48,26.69510401]
[1609595373426,6.01438,765.56,765.48,26.69510401]
[1609595374131,6.01438,765.56,765.44,26.71016757]
[1609595374429,2.6276,765.55,765.44,26.71016757]
[1609595374630,6.01438,765.56,765.44,26.71016757]
[1609595375029,6.01438,765.45,765.44,26.71016757]
[1609595375631,8.66478,765.45,765.44,26.71016757]
[1609595375932,6.01438,765.45,765.44,26.71016757]
[1609595376733,6.01438,765.45,765.39,26.74329583]
[1609595377329,6.01438,765.45,765.41,26.77685195]
[1609595377931,2.5832,765.44,765.41,26.77685195]
[1609595378132,2.5832,765.44,765.42,26.77407991]
[1609595378832,6.01438,765.45,765.42,26.77407991]
[1609595380536,4.838,765.6,765.42,26.77407991]
[1609595380734,75.8295,766.49,765.3,29.94707575]
[1609595381134,6.01438,765.64,765.41,6.01438]
[1609595381334,9.57838,765.64,765.41,6.01438]
[1609595381534,2.598,765.63,765.41,6.01438]
[1609595382338,2.598,765.63,765.55,26.77084211]
[1609595382736,6.01438,765.64,765.55,26.77084211]
[1609595385139,6.01438,765.64,765.55,32.78522211]
[1609595386240,2.5889,765.63,765.55,32.78522211]
[1609595386439,6.01438,765.64,765.55,32.78522211]
[1609595387240,3.211,765.9,765.55,32.78522211]
[1609595388742,3.211,765.9,765.6,29.92175074]
[1609595389141,3.211,765.9,765.76,6.01438]
[1609595389441,2.6113,765.89,765.76,6.01438]
[1609595389843,2.6113,765.89,765.82,26.68747134]
[1609595390745,2.6113,765.89,765.85,26.69605171]
[1609595391143,6.01438,765.88,765.85,26.69605171]
[1609595391746,2.6113,765.89,765.85,26.69605171]
[1609595392546,2.6113,765.89,765.76,6.01438]
[1609595393651,2.6113,765.89,765.77,29.83304875]
[1609595394052,6.01438,765.92,765.77,29.83304875]
[1609595394752,7.21918402,767.33,765.79,29.83771902]
[1609595395154,6.01438,766.02,765.88,6.01438]
[1609595396057,4.123,766.31,766.2,23.53779182]
[1609595396855,2.5842,766.45,766.2,23.53779182]
[1609595397056,2.5842,766.45,766.42,6.01438]
[1609595397858,6.01438,766.46,766.42,6.01438]
[1609595398958,2.612,766.45,766.42,6.01438]
[1609595399258,2.612,766.45,766.38,26.64488836]
[1609595399458,6.01438,766.46,766.37,26.64972414]
[1609595400359,2.584,766.45,766.37,26.64972414]
[1609595401163,6.01438,766.38,766.37,26.64972414]
[1609595401462,6.01438,766.38,766.28,26.66973654]
[1609595403065,6.01438,766.29,766.28,22.02363654]
[1609595403667,10.25838,766.29,766.28,22.02363654]
[1609595404367,12.90608,766.29,766.28,22.02363654]
[1609595404568,10.25838,766.29,766.28,22.02363654]
[1609595404768,10.25838,766.29,765.94,29.864707]
[1609595405073,6.01438,765.95,765.94,29.864707]
[1609595405274,8.98538,765.95,765.94,29.864707]
[1609595405675,11.63538,765.95,765.94,29.864707]
[1609595405976,8.98538,765.95,765.94,29.864707]
[1609595406177,8.98538,765.95,765.52,4.029]
[1609595406978,2.6246,765.94,765.52,4.029]
[1609595407178,6.01438,765.53,765.52,4.029]
[1609595407380,6.01438,765.53,765.34,30.01181782]
[1609595408281,2.5903,765.52,765.34,30.01181782]
[1609595408480,2.5903,765.52,765.31,30.02204206]
[1609595408682,6.01438,765.53,765.31,30.02204206]
[1609595408881,6.01438,765.53,765.31,34.69904206]
[1609595409081,2.971,765.95,765.31,34.69904206]
[1609595409584,2.971,765.95,765.31,4.677]
[1609595410485,2.639,768.63,765.31,4.677]
[1609595410683,2.639,768.63,765.35,30.03063203]
[1609595410684,7.22473928,766.86,765.35,30.03063203]
[1609595411083,6.01438,765.36,765.35,30.03063203]
[1609595411485,6.01438,765.36,765.31,4.677]
[1609595412986,6.01438,765.36,764.64,4.029]
[1609595412987,6.01438,765.36,765.23,30.08636243]
[1609595413187,6.01438,765.24,765.23,30.08636243]
[1609595413892,6.01438,765.24,765.18,26.94237387]
[1609595414889,6.01438,765.24,765.11,30.09021659]
[1609595415790,6.01438,765.24,764.81,8.035]
[1609595415791,6.01438,765.24,765.21,30.07000769]
[1609595416990,6.01438,765.24,765.22,30.06291676]
[1609595419295,6.01438,765.24,765.05,4.62]
[1609595419694,75.39028,765.66,765.05,4.62]
[1609595419894,75.39028,765.66,765.06,4.029]
[1609595420894,75.39028,765.66,765.61,26.76452337]
[1609595421094,6.01438,765.62,765.61,26.76452337]
[1609595421496,6.01438,765.62,765.59,26.76854486]
[1609595422097,6.01438,765.62,765.46,26.78797855]
[1609595423197,6.01438,765.47,765.46,26.78797855]
[1609595423399,10.47638,765.47,765.29,6.01438]
[1609595423897,4.462,765.47,765.29,6.01438]
[1609595424300,4.462,765.47,765.35,31.4182638]
[1609595425298,4.462,765.47,765.46,6.01438]
[1609595425701,4.462,765.47,765.35,31.4182638]
[1609595426902,4.462,765.47,765.36,31.43141293]
[1609595427903,75.1161,766.27,765.36,31.43141293]
[1609595428503,11.1895,766.86,765.36,31.43141293]
[1609595428905,103.7384,765.86,765.36,31.43141293]
[1609595429204,6.01438,765.48,765.36,31.43141293]
[1609595429504,10.68638,765.48,765.36,31.43141293]
[1609595430506,10.68638,765.48,765.27,31.42986641]
[1609595431408,10.68638,765.48,765.34,29.86520499]
[1609595432509,10.68638,765.48,765.36,29.85558485]
[1609595433310,6.01438,765.37,765.34,29.81393553]
[1609595434312,6.01438,765.37,765.27,29.77866686]
[1609595435213,6.01438,765.28,765.27,29.77866686]
[1609595435414,8.97738,765.28,765.08,12.064]
[1609595435614,8.97738,765.28,765.26,29.7276432]
[1609595436818,8.97738,765.28,765.27,29.68632921]
[1609595440122,8.97738,765.28,765.26,29.68961916]
[1609595441523,8.97738,765.28,765.22,26.61144786]
[1609595442526,8.97738,765.28,765.17,26.61380783]
[1609595443224,6.01438,765.18,765.17,26.61380783]
[1609595443927,6.01438,765.18,765.03,29.76008095]
[1609595445029,6.01438,765.18,765.02,29.73015945]
[1609595445227,6.01438,765.26,765.1,6.01438]
[1609595447635,6.01438,765.26,765.22,29.61907189]
[1609595449236,6.01438,765.26,765.24,29.5367896]
[1609595450637,6.01438,765.26,765.22,29.5130349]
[1609595452542,6.01438,765.26,765.16,6.01438]
[1609595453342,6.01438,765.17,765.16,6.01438]
[1609595454545,6.01438,765.17,764.97,30.93341979]
[1609595455248,6.01438,765.05,764.97,30.93341979]
[1609595455648,6.01438,765.05,764.99,30.82602056]
[1609595456847,6.01438,765.05,764.93,30.85847608]
[1609595457046,2.963,765.28,764.93,30.85847608]
[1609595457246,6.01438,765.14,764.99,6.01438]
[1609595458649,4.045,765.17,764.99,6.01438]
[1609595459250,4.045,765.17,765.16,6.01438]
[1609595460252,91.9528,766.46,765.16,6.01438]
[1609595460450,11.289,766.76,765.16,6.01438]
[1609595461251,6.01438,765.66,765.51,6.01438]
[1609595462151,6.01438,765.66,765.56,29.43119966]
[1609595463851,15.0,765.65,765.56,29.43119966]
[1609595464352,15.0,765.65,765.54,29.45695167]
[1609595466854,15.0,765.65,765.56,29.52253183]
[1609595467356,6.01438,765.57,765.56,29.52253183]
[1609595467553,21.01438,765.57,765.56,29.52253183]
[1609595468957,21.01438,765.57,765.55,29.56095189]
[1609595471262,5.05826647,765.57,765.5,29.57824278]
[1609595471461,6.01438,765.56,765.5,29.57824278]
[1609595471662,5.05826647,765.55,765.5,29.57824278]
[1609595472262,5.05826647,765.55,765.12,4.029]
[1609595472263,5.05826647,765.55,765.49,26.43591907]
[1609595474568,5.05826647,765.55,765.12,4.029]
[1609595474569,90.7076,765.54,765.46,26.44508816]
[1609595474769,5.05826647,765.53,765.46,26.44508816]
[1609595475367,6.01438,765.47,765.46,26.44508816]
[1609595475569,11.07264647,765.47,765.33,26.47308275]
[1609595477070,11.07264647,765.47,765.28,26.47606916]
[1609595477472,6.01438,765.29,765.28,26.47606916]
[1609595477674,11.07264647,765.29,765.28,26.47606916]
[1609595481479,5.05826647,765.29,765.28,26.47606916]
[1609595482079,5.05826647,765.29,765.23,26.48381153]
[1609595482679,5.05826647,765.28,765.23,26.48381153]
[1609595483580,5.05826647,765.28,765.22,29.5469697]
[1609595483779,5.05826647,765.27,765.22,29.5469697]
[1609595484682,5.05826647,765.3,765.25,29.55664953]
[1609595484881,5.05826647,765.26,765.25,29.55664953]
[1609595488085,5.05826647,765.26,765.12,4.029]
[1609595488889,5.05826647,765.3,765.25,29.59651142]
[1609595489088,4.001,765.31,765.25,24.53824495]
[1609595489288,6.01438,765.32,765.25,24.53824495]
[1609595489488,15.0,765.31,765.25,24.53824495]
[1609595489688,15.0,765.31,765.12,4.029]
[1609595489890,17.986,765.31,765.12,4.029]
[1609595491388,6.01438,765.16,765.12,4.029]
[1609595491590,15.0,765.15,765.12,4.029]
[1609595500802,15.0,765.15,764.97,31.39734172]
[1609595501002,19.266,765.15,765.11,29.85535957]
[1609595502006,19.266,765.15,765.03,26.81766913]
[1609595503506,6.01438,765.04,765.03,26.81766913]
[1609595503705,21.01438,765.04,765.03,26.81766913]
[1609595504506,21.01438,765.04,764.69,4.029]
[1609595504507,21.01438,765.04,764.98,26.7851859]
[1609595505308,21.01438,765.04,765.02,26.75411121]
[1609595506811,21.01438,765.04,765.0,26.75555449]
[1609595508611,21.01438,765.04,764.94,29.89164127]
[1609595509513,6.01438,764.95,764.94,29.89164127]
[1609595509712,25.69038,764.95,764.94,29.89164127]
[1609595510512,25.69038,764.95,764.93,79.84643596]
[1609595511716,25.69038,764.95,764.93,50.0]
[1609595527329,25.69038,764.95,764.94,26.6064645]
[1609595528934,25.69038,764.95,764.93,50.0]
[1609595533537,25.69038,764.95,764.94,6.01438]
[1609595535439,25.69038,764.95,764.93,50.0]
[1609595536839,19.676,764.95,764.93,50.0]
[1609595537040,4.676,764.95,764.93,50.0]
[1609595537240,15.0,765.14,764.93,50.0]
[1609595537640,15.0,765.14,765.06,6.01438]
[1609595538041,15.0,765.14,764.93,50.0]
[1609595539444,15.0,765.14,765.02,29.59400837]
[1609595539643,15.0,765.14,765.13,6.01438]
[1609595542245,15.0,765.3,765.13,6.01438]
[1609595543247,15.0,765.29,765.13,6.01438]
[1609595543647,15.0,765.29,765.28,6.01438]
[1609595543851,15.0,765.29,765.13,29.59925926]
[1609595544847,15.0,765.29,765.04,3.539]
[1609595544848,15.0,765.29,765.14,29.60605696]
[1609595545449,15.0,765.28,765.14,29.60605696]
[1609595546250,15.0,765.28,765.04,3.539]
[1609595546251,15.0,765.28,765.12,26.52169338]
[1609595546450,15.0,765.27,765.12,26.52169338]
[1609595547352,15.0,765.26,765.12,26.52169338]
[1609595547554,15.0,765.26,765.13,26.51776476]
[1609595547754,19.14,765.26,765.13,26.51776476]
[1609595548756,19.14,765.26,765.12,26.52057842]
[1609595549155,91.8956,765.25,765.12,26.52057842]
[1609595549355,15.0,765.24,765.12,26.52057842]
[1609595549556,6.01438,765.13,765.12,26.52057842]
[1609595549755,21.01438,765.13,765.12,26.52057842]
[1609595549956,21.01438,765.13,765.04,26.54154685]
[1609595551561,6.01438,765.05,765.04,26.54154685]
[1609595551761,21.01438,765.05,765.04,26.54154685]
[1609595551961,24.61938,765.05,764.93,50.0]
[1609595552163,18.605,765.05,764.93,50.0]
[1609595552564,15.0,765.04,764.93,50.0]
[1609595552762,15.0,765.04,764.99,26.5507571]
[1609595553962,15.0,765.04,765.03,26.54377527]
[1609595554962,15.0,765.04,764.93,79.6479038]
[1609595555163,3.605,765.05,764.93,79.6479038]
[1609595555372,15.0,765.25,764.93,79.6479038]
[1609595555569,15.0,765.25,765.07,6.01438]
[1609595556664,15.0,765.24,765.07,6.01438]
[1609595557665,15.0,765.24,765.23,6.01438]
[1609595559565,15.0,765.41,765.23,6.01438]
[1609595559766,15.0,765.24,765.23,6.01438]
[1609595560665,15.0,765.41,765.23,6.01438]
[1609595561665,15.0,765.41,765.4,6.01438]
[1609595561865,3.697,765.42,765.4,6.01438]
[1609595562065,15.0,765.57,765.4,6.01438]
[1609595563367,15.0,765.57,765.51,26.40052226]
[1609595563567,15.0,765.57,765.56,6.01438]
[1609595563866,15.0,765.57,765.51,26.40052226]
[1609595564067,15.0,765.57,765.53,26.39709498]
[1609595566968,15.0,765.57,765.39,6.01438]
[1609595566969,15.0,765.57,765.51,26.40135059]
[1609595567673,15.0,765.57,765.56,6.01438]
[1609595571377,15.0,765.57,765.53,26.37457145]
[1609595571775,15.0,765.56,765.53,26.37457145]
[1609595572678,15.0,765.55,765.53,26.37457145]
[1609595573681,15.0,765.54,765.53,26.37457145]
[1609595573880,15.0,765.54,765.4,29.47368343]
[1609595574781,15.0,765.6,765.4,29.47368343]
[1609595574980,15.0,765.6,765.38,6.01438]
[1609595574981,15.0,765.6,765.47,26.3881207]
[1609595575584,6.01438,765.49,765.47,26.3881207]
[1609595575782,15.0,765.48,765.47,26.3881207]
[1609595576483,15.0,765.48,765.38,6.01438]
[1609595577583,15.0,765.47,765.35,4.317]
[1609595578685,15.0,765.68,765.36,29.56929545]
[1609595578886,15.0,765.46,765.36,29.56929545]
[1609595579589,15.0,765.46,765.45,6.01438]
[1609595580190,15.0,765.46,765.44,29.55122502]
[1609595580892,15.0,765.68,765.44,29.55122502]
[1609595581093,15.0,765.68,765.4,29.55921606]
[1609595581692,15.0,765.68,765.46,6.01438]
[1609595582094,15.0,765.67,765.51,26.40085616]
[1609595583194,15.0,765.66,765.51,26.40085616]
[1609595583394,15.0,765.66,765.48,26.40923664]
[1609595583795,6.01438,765.49,765.48,26.40923664]
[1609595583995,21.01438,765.49,765.48,26.40923664]
[1609595584595,21.01438,765.49,765.35,4.317]
[1609595584796,21.01438,765.49,765.23,29.50586638]